bitfinex-derivatives/quotes_SOLF0:USTF0_20250416
["timestamp","ask_amount","ask_price","bid_price","bid_amount"]
[1744764282556,10.97893425,126.55,126.47,10.97893425]
[1744764283054,7.9036,126.54,126.47,10.97893425]
[1744764283456,0.05867733,126.52,126.51,7.9051]
[1744764291767,0.05867733,126.52,126.5,7.9053]
[1744764292761,32.13867733,126.52,126.49,0.05937729]
[1744764293066,10.97893425,126.51,126.45,32.12]
[1744764293368,7.9067,126.49,126.42,47.9012]
[1744764293565,16.77493425,126.51,126.42,47.9012]
[1744764293966,7.906,126.5,126.47,7.9073]
[1744764294264,7.96082517,126.5,126.47,7.95816148]
[1744764295768,7.9066,126.49,126.47,0.05086148]
[1744764296370,7.96092517,126.5,126.47,7.95836148]
[1744764300369,0.05482517,126.5,126.49,7.9063]
[1744764301469,0.05482517,126.5,126.47,0.05086148]
[1744764301974,0.05482517,126.5,126.49,7.9063]
[1744764303272,0.05482517,126.5,126.48,7.9066]
[1744764303474,0.05482517,126.5,126.47,0.05086148]
[1744764303770,0.05482517,126.5,126.49,7.9063]
[1744764304369,0.05482517,126.5,126.48,7.9066]
[1744764304769,0.05482517,126.5,126.47,0.05086148]
[1744764304968,0.05482517,126.5,126.49,7.9063]
[1744764307872,5.5369,126.55,126.47,11.02979573]
[1744764308177,7.9038,126.53,126.47,10.97893425]
[1744764308372,10.97893425,126.53,126.44,24.1528]
[1744764308584,7.9058,126.5,126.44,8.335]
[1744764308772,0.05854232,126.48,126.46,0.05107477]
[1744764308973,0.05015174,126.48,126.46,7.95897477]
[1744764309172,0.05015174,126.48,126.46,0.05107477]
[1744764309579,0.05015174,126.48,126.47,7.9076]
[1744764310579,0.05015174,126.48,126.46,0.05107477]
[1744764311078,0.05015174,126.48,126.42,7.9104]
[1744764311079,11.02908599,126.48,126.42,7.9104]
[1744764311279,10.97893425,126.46,126.42,7.9104]
[1744764311479,39.9691,126.45,126.42,7.9104]
[1744764311982,32.11030456,126.45,126.42,7.97095464]
[1744764312377,32.11030456,126.45,126.42,0.06055464]
[1744764312985,32.11030456,126.45,126.43,7.9101]
[1744764314289,0.05030456,126.45,126.43,7.9101]
[1744764314489,32.06,126.44,126.43,7.9101]
[1744764314684,32.06,126.44,126.42,7.97095464]
[1744764314882,0.05030456,126.45,126.42,7.97095464]
[1744764315083,32.06,126.44,126.42,7.97095464]
[1744764315282,32.11030456,126.45,126.42,7.97095464]
[1744764315483,32.11030456,126.45,126.42,0.06055464]
[1744764316182,32.11030456,126.45,126.43,7.9101]
[1744764316401,32.11030456,126.45,126.42,0.06055464]
[1744764316888,40.01950456,126.45,126.42,0.06055464]
[1744764317488,40.01950456,126.45,126.42,7.97115464]
[1744764317786,10.97893425,126.44,126.42,0.06055464]
[1744764319891,7.9101,126.43,126.42,0.06055464]
[1744764321491,39.9701,126.43,126.42,0.06055464]
[1744764321791,7.9115,126.41,126.38,7.9129]
[1744764321987,10.97893425,126.42,126.36,5.7029]
[1744764322488,18.89013425,126.42,126.36,5.7029]
[1744764322790,0.05307437,126.4,126.38,7.97222408]
[1744764323491,32.06,126.39,126.38,7.97222408]
[1744764323989,0.05307437,126.4,126.38,7.97222408]
[1744764324189,32.11307437,126.4,126.38,7.97222408]
[1744764325292,0.05307437,126.4,126.38,7.97222408]
[1744764325588,32.11307437,126.4,126.38,7.97222408]
[1744764327388,0.05307437,126.4,126.39,7.9126]
[1744764327589,43.7,126.43,126.38,0.05942408]
[1744764328594,0.05979885,126.42,126.38,0.05942408]
[1744764328895,0.05979885,126.42,126.4,7.9116]
[1744764329085,0.05979885,126.42,126.38,0.05942408]
[1744764330193,0.05979885,126.42,126.41,7.9113]
[1744764332289,32.08,126.45,126.43,7.9099]
[1744764332686,32.08,126.45,126.39,10.97893425]
[1744764332687,10.97893425,126.47,126.39,10.97893425]
[1744764332893,32.08,126.46,126.39,10.97893425]
[1744764333183,0.05829232,126.44,126.43,10.97893425]
[1744764333387,601.14,126.49,126.43,10.97893425]
[1744764333388,32.08,126.49,126.43,10.97893425]
[1744764333790,17.51,126.48,126.47,7.9076]
[1744764336290,5.5521,126.48,126.47,7.9076]
[1744764336496,2.989e-05,126.49,126.48,7.907]
[1744764337899,2.989e-05,126.49,126.47,7.9074]
[1744764338199,2.989e-05,126.49,126.46,0.0499667]
[1744764338392,10.97896414,126.49,126.46,0.0499667]
[1744764338589,32.06,126.48,126.46,0.0499667]
[1744764338796,7.9076,126.47,126.4,34.7851]
[1744764339295,39.9672,126.48,126.44,7.9091]
[1744764339496,32.06,126.48,126.41,10.97893425]
[1744764339696,7.9059,126.5,126.46,7.9078]
[1744764339906,32.11052843,126.49,126.47,0.0551814]
[1744764340130,43.08946268,126.49,126.47,0.0551814]
[1744764340333,43.08946268,126.49,126.41,10.97893425]
[1744764340532,43.03893425,126.49,126.41,10.97893425]
[1744764340734,7.9076,126.47,126.41,10.97893425]
[1744764340930,10.97893425,126.45,126.38,2.7357]
[1744764341223,32.02,126.44,126.42,7.9106]
[1744764341420,0.05893686,126.43,126.42,7.9106]
[1744764342221,32.02,126.47,126.46,7.9082]
[1744764342426,42.99893425,126.49,126.46,7.9082]
[1744764343418,42.99893425,126.49,126.46,7.96222689]
[1744764343419,43.05342833,126.49,126.46,7.96222689]
[1744764343814,18.93992833,126.49,126.46,0.05402689]
[1744764344013,32.02,126.48,126.46,0.05402689]
[1744764344314,10.97893425,126.47,126.39,10.97893425]
[1744764344716,32.02,126.48,126.44,7.9092]
[1744764345205,39.9275,126.48,126.44,7.9092]
[1744764345409,0.05134871,126.47,126.45,0.05396033]
[1744764346112,7.95924871,126.47,126.45,0.05396033]
[1744764346409,0.05134871,126.47,126.45,0.05396033]
[1744764346909,11.03028296,126.47,126.45,0.05396033]
[1744764347110,13.85408296,126.47,126.45,0.05396033]
[1744764347305,7.9082,126.46,126.45,0.05396033]
[1744764351911,13.85408296,126.47,126.38,40.2013]
[1744764352211,13.80273425,126.47,126.43,7.9097]
[1744764352511,7.9086,126.46,126.43,7.9097]
[1744764352813,7.9086,126.46,126.44,7.9093]
[1744764353109,0.05992617,126.46,126.44,0.05584781]
[1744764353317,4.38,126.51,126.45,10.97893425]
[1744764353510,4.38,126.51,126.49,7.9061]
[1744764353908,32.02,126.52,126.49,7.9061]
[1744764354119,32.02,126.52,126.47,10.97893425]
[1744764354310,0.05101641,126.51,126.48,0.05273564]
[1744764356009,7.95661641,126.51,126.48,0.05273564]
[1744764356215,0.05101641,126.51,126.48,0.05273564]
[1744764356615,7.95661641,126.51,126.48,0.05273564]
[1744764357714,0.05101641,126.51,126.48,0.05273564]
[1744764357916,32.07101641,126.51,126.48,0.05273564]
[1744764359015,32.02,126.5,126.48,0.05273564]
[1744764360214,10.97893425,126.49,126.4,5.6042]
[1744764360415,32.02,126.48,126.4,5.6042]
[1744764360615,7.9079,126.47,126.4,5.6042]
[1744764361121,0.05538979,126.45,126.42,0.05219127]
[1744764361916,0.05538979,126.45,126.44,7.9095]
[1744764362916,32.07538979,126.45,126.44,7.9095]
[1744764363413,32.07538979,126.45,126.43,7.9099]
[1744764363715,32.07538979,126.45,126.42,0.05219127]
[1744764363916,0.05538979,126.45,126.43,10.97893425]
[1744764364217,32.02,126.48,126.47,7.9073]
[1744764364413,7.906,126.5,126.47,7.9073]
[1744764364616,5.6677,126.52,126.48,7.9064]
[1744764364815,32.02,126.51,126.48,7.9064]
[1744764365117,7.95946997,126.51,126.48,7.96463108]
[1744764365312,0.05406997,126.51,126.49,7.9061]
[1744764365519,32.02,126.5,126.49,7.9061]
[1744764366313,0.05406997,126.51,126.49,7.9061]
[1744764366519,0.05406997,126.51,126.5,7.9057]
[1744764367012,6.997e-05,126.51,126.5,7.9057]
[1744764367318,4.34,126.55,126.5,2.7961]
[1744764367521,4.34,126.55,126.52,10.97893425]
[1744764367713,4.34,126.55,126.53,7.9034]
[1744764367909,32.02,126.56,126.53,7.9034]
[1744764368211,32.07861057,126.56,126.54,7.9032]
[1744764368408,32.07861057,126.56,126.53,0.05913152]
[1744764368811,32.07861057,126.56,126.55,7.9026]
[1744764369420,32.07861057,126.56,126.53,0.05913152]
[1744764370218,32.07861057,126.56,126.53,7.96283152]
[1744764370520,32.07861057,126.56,126.53,0.05913152]
[1744764371419,39.98091057,126.56,126.53,0.05913152]
[1744764372420,31.98,126.55,126.53,0.05913152]
[1744764373114,39.8827,126.55,126.53,0.05913152]
[1744764373323,31.98,126.55,126.53,0.05913152]
[1744764373825,39.8828,126.55,126.53,0.05913152]
[1744764375024,7.9032,126.54,126.53,0.05913152]
[1744764375224,42.95893425,126.55,126.44,10.97893425]
[1744764375426,10.97893425,126.5,126.43,5.5338]
[1744764375620,31.98,126.49,126.46,7.9078]
[1744764376124,32.03435633,126.49,126.46,7.96223993]
[1744764376722,32.03435633,126.49,126.46,0.05443993]
[1744764377025,10.97893425,126.48,126.46,0.05443993]
[1744764377726,10.97893425,126.48,126.4,10.97893425]
[1744764377920,7.9083,126.46,126.4,10.97893425]
[1744764378120,31.98,126.45,126.4,10.97893425]
[1744764378421,31.98,126.45,126.38,10.97893425]
[1744764378827,0.05062248,126.43,126.4,0.05581599]
[1744764379025,31.98,126.42,126.41,7.911]
[1744764380528,31.98,126.42,126.4,7.96751599]
[1744764381431,31.98,126.42,126.41,7.9113]
[1744764383428,31.98,126.42,126.4,0.05581599]
[1744764384129,31.98,126.41,126.4,0.05581599]
[1744764389737,32.0,126.41,126.4,0.05581599]
[1744764390136,32.0,126.41,126.4,7.96781599]
[1744764390833,0.05062248,126.43,126.41,7.9112]
[1744764391233,0.05062248,126.43,126.4,0.05581599]
[1744764391438,32.05062248,126.43,126.42,7.9107]
[1744764393841,32.05062248,126.43,126.41,7.9111]
[1744764394144,32.05062248,126.43,126.4,0.05581599]
[1744764394343,7.9108,126.42,126.4,0.05581599]
[1744764395444,32.05062248,126.43,126.4,0.05581599]
[1744764395946,7.9112,126.42,126.4,0.05581599]
[1744764396546,32.05062248,126.43,126.4,0.05581599]
[1744764397143,10.97893425,126.42,126.4,0.05581599]
[1744764397445,10.97893425,126.38,126.3,10.97893425]
[1744764397646,7.9154,126.35,126.32,7.9166]
[1744764397847,32.0,126.34,126.28,5.7544]
[1744764398240,0.05114604,126.32,126.3,0.06037618]
[1744764398439,32.0,126.31,126.3,0.06037618]
[1744764399052,32.0,126.31,126.3,7.97827618]
[1744764399251,32.0,126.31,126.3,0.06037618]
[1744764400052,32.0,126.31,126.3,7.97857618]
[1744764400450,32.05114604,126.32,126.3,0.06037618]
[1744764400647,32.05114604,126.32,126.31,7.9176]
[1744764402750,32.05114604,126.32,126.3,0.06037618]
[1744764403452,31.98,126.31,126.3,0.06037618]
[1744764404453,0.05114604,126.32,126.3,7.97817618]
[1744764404647,31.98,126.31,126.3,7.97817618]
[1744764405050,0.05114604,126.32,126.31,7.9176]
[1744764405252,32.03114604,126.32,126.31,7.9176]
[1744764406749,0.05114604,126.32,126.31,7.9176]
[1744764406954,17.59750185,126.4,126.3,0.06037618]
[1744764407253,577.5524,126.4,126.31,17.59750185]
[1744764407555,31.98,126.38,126.36,7.9141]
[1744764407757,5.5234,126.41,126.33,17.59750185]
[1744764408054,0.05860847,126.38,126.36,0.05735825]
[1744764408449,0.05860847,126.38,126.37,7.9139]
[1744764408848,2.9334,126.43,126.36,0.05735825]
[1744764409054,4.26,126.45,126.39,17.59750185]
[1744764409652,4.26,126.45,126.37,49.57750185]
[1744764409653,4.26,126.45,126.44,7.9095]
[1744764409845,569.64,126.53,126.43,17.59750185]
[1744764410051,31.98,126.52,126.45,17.59750185]
[1744764410555,31.98,126.52,126.44,5.6324]
[1744764411156,0.05487526,126.49,126.47,0.05312581]
[1744764411555,0.05487526,126.49,126.48,7.907]
[1744764411749,2.9531,126.55,126.47,0.05312581]
[1744764411954,31.98,126.54,126.46,17.59750185]
[1744764412645,0.0570564,126.51,126.49,0.05598504]
[1744764413354,0.0570564,126.51,126.49,7.96188504]
[1744764413764,0.0570564,126.51,126.49,0.05598504]
[1744764414063,32.0370564,126.51,126.49,0.05598504]
[1744764415660,39.9426564,126.51,126.49,0.05598504]
[1744764416050,32.0370564,126.51,126.49,0.05598504]
[1744764416860,39.9424564,126.51,126.49,0.05598504]
[1744764417362,7.9057,126.5,126.49,0.05598504]
[1744764417663,32.0370564,126.51,126.44,7.9095]
[1744764417859,7.9069,126.49,126.44,7.9095]
[1744764418056,31.96,126.48,126.44,7.9095]
[1744764418257,31.96,126.48,126.4,34.8533]
[1744764418458,6.536e-05,126.45,126.43,0.05366467]
[1744764418662,31.96,126.47,126.43,17.65116652]
[1744764418855,31.96,126.47,126.46,7.9082]
[1744764419257,31.96,126.47,126.43,0.05366467]
[1744764419457,0.05733635,126.46,126.43,0.05366467]
[1744764419865,0.05733635,126.46,126.45,7.9088]
[1744764423362,32.01733635,126.46,126.45,7.9088]
[1744764423568,32.01733635,126.46,126.43,0.05366467]
[1744764424166,7.9089,126.45,126.43,0.05366467]
[1744764424364,49.6148382,126.46,126.43,0.05366467]
[1744764424663,20.56260185,126.44,126.35,2.9687]
[1744764424862,31.96,126.43,126.35,2.9687]
[1744764425064,31.96,126.43,126.34,5.5392]
[1744764425370,10.98721205,126.42,126.34,5.5392]
[1744764425570,0.05202707,126.39,126.37,0.05312377]
[1744764425766,31.96,126.38,126.37,0.05312377]
[1744764426069,7.9145,126.36,126.29,10.98721205]
[1744764426369,42.94721205,126.38,126.29,10.98721205]
[1744764426370,31.96,126.35,126.29,10.98721205]
[1744764427069,0.05287351,126.33,126.31,0.04984718]
[1744764428369,0.05287351,126.33,126.32,7.917]
[1744764428572,0.05287351,126.33,126.31,0.04984718]
[1744764428869,0.05287351,126.33,126.31,7.96734718]
[1744764429070,0.05287351,126.33,126.31,0.04984718]
[1744764430070,0.05287351,126.33,126.31,7.96714718]
[1744764430271,0.05287351,126.33,126.31,0.04984718]
[1744764432173,0.05287351,126.33,126.32,7.917]
[1744764435475,0.05287351,126.33,126.31,0.04984718]
[1744764436669,0.05287351,126.33,126.31,7.96704718]
[1744764436870,34.83,126.38,126.31,0.04984718]
[1744764437068,52.4231625,126.38,126.31,0.04984718]
[1744764437266,17.5931625,126.36,126.31,0.04984718]
[1744764437472,2.7774,126.35,126.31,0.04984718]
[1744764437672,31.96,126.34,126.31,0.04984718]
[1744764437866,34.73313099,126.34,126.31,0.04984718]
[1744764438476,7.9167,126.33,126.31,0.04984718]
[1744764438778,34.73313099,126.34,126.31,0.04984718]
[1744764439073,7.9164,126.33,126.31,0.04984718]
[1744764440477,34.73313099,126.34,126.31,0.04984718]
[1744764441172,7.9167,126.33,126.31,0.04984718]
[1744764443774,31.96,126.32,126.31,7.96744718]
[1744764444181,31.96,126.32,126.31,0.04984718]
[1744764444979,31.96,126.32,126.31,7.96744718]
[1744764445179,31.96,126.32,126.31,0.04984718]
[1744764446077,0.05823099,126.34,126.31,0.04984718]
[1744764446385,32.01823099,126.34,126.31,0.04984718]
[1744764446583,32.01823099,126.34,126.33,7.9164]
[1744764447179,7.9168,126.33,126.31,0.04984718]
[1744764448384,32.01823099,126.34,126.31,0.04984718]
[1744764448883,7.9167,126.33,126.31,0.04984718]
[1744764449279,10.9982313,126.33,126.24,16.6557313]
[1744764449480,13.7262313,126.33,126.24,16.6557313]
[1744764449873,2.728,126.33,126.26,10.9982313]
[1744764450078,31.96,126.32,126.26,10.9982313]
[1744764450282,0.05814161,126.3,126.28,0.05479788]
[1744764450784,0.05814161,126.3,126.28,7.97399788]
[1744764450986,31.96,126.29,126.28,7.97399788]
[1744764451283,32.01814161,126.3,126.28,7.97399788]
[1744764452284,32.01814161,126.3,126.29,7.9189]
[1744764452686,0.05814161,126.3,126.29,7.9189]
[1744764452987,32.01814161,126.3,126.28,0.05479788]
[1744764453385,0.05814161,126.3,126.28,0.05479788]
[1744764453581,32.01814161,126.3,126.29,7.9189]
[1744764454185,0.05814161,126.3,126.29,7.9189]
[1744764454386,32.01814161,126.3,126.29,7.9189]
[1744764455281,0.05814161,126.3,126.29,7.9189]
[1744764455584,32.01814161,126.3,126.29,7.9189]
[1744764455885,0.05814161,126.3,126.29,7.9189]
[1744764456086,32.01814161,126.3,126.29,7.9189]
[1744764456691,32.01814161,126.3,126.28,0.05479788]
[1744764458389,39.93654161,126.3,126.28,0.05479788]
[1744764459083,32.01814161,126.3,126.28,0.05479788]
[1744764461289,39.93644161,126.3,126.28,0.05479788]
[1744764462494,32.01814161,126.3,126.28,0.05479788]
[1744764463189,32.01814161,126.3,126.28,7.97419788]
[1744764463494,32.01814161,126.3,126.28,0.05479788]
[1744764464491,32.01814161,126.3,126.28,7.97419788]
[1744764465489,31.99814161,126.3,126.28,0.05479788]
[1744764466200,31.99814161,126.3,126.29,7.9189]
[1744764467895,0.05814161,126.3,126.29,7.9189]
[1744764469597,0.05814161,126.3,126.28,7.97399788]
[1744764472016,7.9189,126.29,126.28,0.05479788]
[1744764472308,0.05814161,126.3,126.28,0.05479788]
[1744764472713,7.97664161,126.3,126.28,0.05479788]
[1744764473208,0.05814161,126.3,126.28,0.05479788]
[1744764473412,0.05814161,126.3,126.28,7.97429788]
[1744764473413,31.94,126.29,126.28,7.97429788]
[1744764474214,0.05814161,126.3,126.29,7.9189]
[1744764474415,31.99814161,126.3,126.29,7.9189]
[1744764478218,31.94,126.32,126.31,7.917]
[1744764479416,42.94453479,126.32,126.28,0.05479788]
[1744764479610,11.00453479,126.3,126.21,11.00453479]
[1744764479809,31.94,126.29,126.21,11.00453479]
[1744764480416,7.9199,126.28,126.24,7.9217]
[1744764480615,0.05211709,126.27,126.25,0.05290935]
[1744764480817,31.94,126.26,126.25,0.05290935]
[1744764482022,39.8607,126.26,126.25,0.05290935]
[1744764482217,31.94,126.26,126.25,0.05290935]
[1744764482515,0.05211709,126.27,126.25,0.05290935]
[1744764482721,31.99211709,126.27,126.25,7.97400935]
[1744764483019,0.05211709,126.27,126.25,7.97400935]
[1744764483210,31.99211709,126.27,126.26,7.9207]
[1744764485424,0.05211709,126.27,126.26,7.9207]
[1744764485625,2.8858,126.35,126.26,11.00453479]
[1744764485824,31.94,126.34,126.28,11.00453479]
[1744764486624,0.05475661,126.32,126.3,0.05132994]
[1744764486826,0.05475661,126.32,126.31,7.9175]
[1744764488018,0.05475661,126.32,126.3,11.05586473]
[1744764488019,0.05475661,126.32,126.3,0.05132994]
[1744764488423,0.05475661,126.32,126.3,7.96902994]
[1744764488726,0.05475661,126.32,126.3,0.05132994]
[1744764488921,0.05475661,126.32,126.31,7.9176]
[1744764493434,5.661e-05,126.32,126.31,7.9176]
[1744764497238,5.661e-05,126.32,126.3,0.05132994]
[1744764497433,11.0045914,126.32,126.25,31.9]
[1744764497634,5.661e-05,126.32,126.27,11.00453479]
[1744764498436,5.661e-05,126.32,126.31,7.9176]
[1744764510839,7.91715661,126.32,126.28,0.06002855]
[1744764511243,5.661e-05,126.32,126.29,7.9186]
[1744764511539,5.661e-05,126.32,126.28,0.06002855]
[1744764512846,5.661e-05,126.32,126.31,7.9176]
[1744764522749,5.661e-05,126.32,126.31,18.92213479]
[1744764522950,31.9,126.38,126.37,7.9139]
[1744764523150,31.9,126.38,126.33,11.00453479]
[1744764523855,0.05849894,126.37,126.35,7.9147]
[1744764524055,0.05849894,126.37,126.34,0.05641157]
[1744764524554,0.05849894,126.37,126.35,7.9151]
[1744764524755,0.05849894,126.37,126.34,0.05641157]
[1744764525054,0.05849894,126.37,126.34,7.97191157]
[1744764525354,0.05849894,126.37,126.34,0.05641157]
[1744764526161,0.05849894,126.37,126.35,7.9151]
[1744764527463,0.05849894,126.37,126.34,0.05641157]
[1744764527464,0.05849894,126.37,126.34,7.97191157]
[1744764527664,0.05849894,126.37,126.34,0.05641157]
[1744764528065,0.05849894,126.37,126.34,7.97161157]
[1744764528266,0.05849894,126.37,126.34,0.05641157]
[1744764528662,0.05849894,126.37,126.35,7.9151]
[1744764529064,0.05849894,126.37,126.34,0.05641157]
[1744764529560,7.97239894,126.37,126.34,0.05641157]
[1744764529761,0.05849894,126.37,126.34,0.05641157]
[1744764531271,7.97239894,126.37,126.34,0.05641157]
[1744764531569,0.05849894,126.37,126.34,0.05641157]
[1744764532764,7.97269894,126.37,126.34,0.05641157]
[1744764533168,0.05849894,126.37,126.34,0.05641157]
[1744764533371,31.86,126.36,126.34,0.05641157]
[1744764533563,45.65033479,126.36,126.34,0.05641157]
[1744764533862,53.56513479,126.36,126.34,0.05641157]
[1744764534059,45.65033479,126.36,126.34,0.05641157]
[1744764534269,7.9151,126.35,126.34,0.05641157]
[1744764535870,7.9151,126.35,126.28,2.9746]
[1744764536571,7.9157,126.34,126.28,2.9746]
[1744764536871,0.05672971,126.32,126.3,0.05051451]
[1744764537468,0.05672971,126.32,126.3,7.08894148]
[1744764539372,0.05672971,126.32,126.3,0.05051451]
[1744764540074,0.05672971,126.32,126.31,7.03842697]
[1744764540571,31.86,126.4,126.36,7.03842697]
[1744764540960,7.03842697,126.39,126.34,7.03842697]
[1744764541166,7.9127,126.39,126.33,31.86]
[1744764541363,10.98920292,126.36,126.28,13.96380292]
[1744764541569,10.98920292,126.34,126.28,2.9746]
[1744764541767,18.90540292,126.34,126.28,2.9746]
[1744764542372,7.9165,126.33,126.3,0.05100316]
[1744764542573,0.05011219,126.32,126.3,0.05100316]
[1744764543876,0.05011219,126.32,126.3,11.04020608]
[1744764545574,31.86,126.37,126.3,11.04020608]
[1744764545779,31.86,126.37,126.32,10.98920292]
[1744764546482,0.05718015,126.36,126.33,0.05492473]
[1744764552385,10.98920292,126.44,126.34,10.98920292]
[1744764552689,39.7705,126.43,126.36,10.98920292]
[1744764553088,31.86,126.43,126.36,10.98920292]
[1744764553287,39.7713,126.42,126.35,2.9871]
[1744764553588,0.05359042,126.4,126.37,0.05720107]
[1744764556489,0.05359042,126.4,126.38,10.98920292]
[1744764557189,0.05359042,126.4,126.37,31.87720107]
[1744764557688,11.04279334,126.4,126.32,31.82]
[1744764557887,10.98920292,126.38,126.31,5.9137]
[1744764558088,18.90300292,126.38,126.31,5.9137]
[1744764558288,2.7123,126.38,126.31,5.9137]
[1744764558887,0.05743085,126.36,126.33,0.05974116]
[1744764566899,0.05743085,126.36,126.34,10.98920292]
[1744764568199,0.05743085,126.36,126.33,0.05974116]
[1744764571100,0.05743085,126.36,126.34,10.98920292]
[1744764573102,13.5789,126.43,126.34,10.98920292]
[1744764573103,31.82,126.42,126.35,31.82]
[1744764573404,31.82,126.42,126.36,10.98920292]
[1744764574005,0.05650422,126.4,126.38,0.06033117]
[1744764579207,7.96870422,126.4,126.38,0.06033117]
[1744764579406,0.05650422,126.4,126.38,0.06033117]
[1744764591715,0.05650422,126.4,126.32,37.5413]
[1744764591918,42.76920292,126.41,126.32,37.5413]
[1744764592515,7.9129,126.39,126.32,37.5413]
[1744764592814,0.05715323,126.37,126.34,0.05883078]
[1744764601321,7.9157,126.35,126.29,31.78]
[1744764601516,39.6957,126.35,126.29,31.78]
[1744764601722,31.78,126.35,126.27,8.4452]
[1744764602023,7.9157,126.34,126.27,8.4452]
[1744764602221,31.78,126.35,126.27,8.4452]
[1744764602423,0.06008631,126.32,126.3,0.05798311]
[1744764603722,0.06008631,126.32,126.3,42.82718603]
[1744764603923,31.78,126.38,126.3,42.82718603]
[1744764604124,31.78,126.39,126.32,10.98920292]
[1744764604425,31.78,126.39,126.34,10.98920292]
[1744764604619,31.78,126.39,126.32,10.98920292]
[1744764604929,0.05753077,126.37,126.34,0.04977831]
[1744764606227,7.97163077,126.37,126.34,0.04977831]
[1744764606529,31.78,126.36,126.34,0.04977831]
[1744764606736,34.6681,126.36,126.34,0.04977831]
[1744764607029,34.6681,126.36,126.28,10.98920292]
[1744764607526,10.98920292,126.33,126.24,42.76920292]
[1744764607728,31.78,126.32,126.24,42.76920292]
[1744764608024,39.6974,126.32,126.24,42.76920292]
[1744764608329,0.05173554,126.29,126.27,0.05719869]
[1744764609327,42.82093846,126.29,126.27,0.05719869]
[1744764609729,7.9195,126.28,126.27,0.05719869]
[1744764610029,42.82093846,126.29,126.27,0.05719869]
[1744764610428,50.74013846,126.29,126.27,0.05719869]
[1744764611233,31.83173554,126.29,126.27,0.05719869]
[1744764612231,39.75073554,126.29,126.27,0.05719869]
[1744764612436,50.73993846,126.29,126.27,0.05719869]
[1744764612932,42.82093846,126.29,126.21,37.4997]
[1744764613134,42.76920292,126.29,126.21,34.604]
[1744764613534,10.98920292,126.27,126.21,31.78]
[1744764613733,31.8,126.26,126.21,31.78]
[1744764614031,0.06065038,126.25,126.22,0.05604386]
[1744764614229,10.98920292,126.23,126.17,2.8628]
[1744764614527,7.9247,126.2,126.14,42.78920292]
[1744764614730,39.7247,126.2,126.14,42.78920292]
[1744764615128,0.05038682,126.18,126.16,0.05566742]
[1744764617336,11.03958974,126.18,126.16,0.05566742]
[1744764617638,7.9264,126.17,126.16,0.05566742]
[1744764618640,0.05038682,126.18,126.16,0.05566742]
[1744764619136,31.83038682,126.18,126.16,0.05566742]
[1744764620437,0.05038682,126.18,126.16,0.05566742]
[1744764621441,0.05038682,126.18,126.17,7.9264]
[1744764622140,0.05038682,126.18,126.16,0.05566742]
[1744764622141,0.05038682,126.18,126.16,7.98216742]
[1744764622342,31.83038682,126.18,126.16,7.98216742]
[1744764622538,31.83038682,126.18,126.16,0.05566742]
[1744764628147,39.75648682,126.18,126.16,0.05566742]
[1744764628947,7.9264,126.17,126.16,0.05566742]
[1744764630149,7.9273,126.16,126.11,5.7896]
[1744764630346,31.78,126.15,126.11,5.7896]
[1744764631053,0.05085682,126.14,126.12,0.05155656]
[1744764631755,0.05085682,126.14,126.12,11.04075948]
[1744764631954,602.08,126.2,126.12,29.9499624]
[1744764632155,602.08,126.2,126.16,10.98920292]
[1744764632851,610.0047,126.2,126.16,10.98920292]
[1744764633053,0.05756791,126.19,126.17,0.05366265]
[1744764633851,31.78,126.22,126.18,10.98920292]
[1744764634050,5.7003,126.24,126.18,10.98920292]
[1744764634051,31.78,126.23,126.18,10.98920292]
[1744764634251,31.78,126.23,126.16,10.98920292]
[1744764634448,10.98920292,126.22,126.13,16.82070292]
[1744764634653,7.9285,126.14,126.07,42.76920292]
[1744764634952,10.98920292,126.16,126.07,42.76920292]
[1744764634953,0.05690855,126.12,126.09,0.05692444]
[1744764636051,0.05690855,126.12,126.09,11.04612736]
[1744764636255,0.05690855,126.12,126.09,0.05692444]
[1744764636857,31.83690855,126.12,126.09,0.05692444]
[1744764637962,0.05690855,126.12,126.09,0.05692444]
[1744764638961,7.98670855,126.12,126.09,0.05692444]
[1744764639162,0.05690855,126.12,126.09,0.05692444]
[1744764640263,31.85690855,126.12,126.09,0.05692444]
[1744764640456,0.05690855,126.12,126.09,0.05692444]
[1744764640659,31.85690855,126.12,126.09,0.05692444]
[1744764641159,31.8,126.11,126.09,0.05692444]
[1744764642468,39.7308,126.11,126.09,0.05692444]
[1744764643065,7.9316,126.09,126.02,31.8]